bitfinex/quotes_ETHUSD_20251028
["timestamp","ask_amount","ask_price","bid_price","bid_amount"]
[1761668132712,13.32735438,4104.2,4104.1,1e-08]
[1761668133638,13.73285838,4104.2,4104.1,1e-08]
[1761668135954,13.83038331,4104.2,4104.1,1e-08]
[1761668136831,18.45729132,4104.2,4104.1,1e-08]
[1761668137033,1.7853,4103.2,4102.8,0.002]
[1761668137223,8.61940845,4102.9,4102.8,0.002]
[1761668137629,9.06800845,4102.9,4102.8,0.002]
[1761668137960,4.53864369,4102.9,4102.8,0.002]
[1761668139133,6.16550044,4102.9,4102.8,0.002]
[1761668139360,7.04877865,4102.9,4102.8,0.002]
[1761668141260,0.2301,4103.5,4102.8,0.002]
[1761668141472,2.174,4103.4,4102.8,0.002]
[1761668141678,3.7292,4103.4,4102.8,0.002]
[1761668141826,2.174,4103.4,4102.8,0.002]
[1761668142256,2.174,4103.3,4102.8,0.002]
[1761668142575,2.43730044,4102.9,4102.8,0.002]
[1761668144263,2.88590044,4102.9,4102.8,0.002]
[1761668147165,4.61030044,4102.9,4102.8,0.002]
[1761668150429,5.05890044,4102.9,4102.8,0.002]
[1761668150664,5.15644297,4102.9,4102.8,0.002]
[1761668150869,6.07132975,4102.9,4102.8,0.002]
[1761668151166,5.52518722,4102.9,4102.8,0.002]
[1761668151974,8.08618722,4102.9,4102.8,0.002]
[1761668152175,5.52518722,4102.9,4102.8,0.002]
[1761668152387,2.43730044,4102.9,4102.8,0.002]
[1761668152593,4.61030044,4102.9,4102.8,0.4412]
[1761668152797,2.43730044,4102.9,4102.8,0.4412]
[1761668153005,2.173,4103.1,4102.8,0.4412]
[1761668153481,2.43730044,4102.9,4102.8,0.4412]
[1761668154300,2.43726298,4103.0,4102.8,0.4412]
[1761668154507,0.4412,4103.9,4102.8,0.4412]
[1761668154808,2.65705193,4104.9,4103.8,0.1515]
[1761668154809,2.4365077,4104.3,4103.8,0.1515]
[1761668154992,2.43669927,4104.0,4103.9,0.4392]
[1761668155198,2.183,4104.4,4103.9,0.4392]
[1761668155506,2.4365878,4104.1,4103.9,0.4392]
[1761668155896,4.61940992,4104.4,4103.9,0.4392]
[1761668156091,2.4375319,4104.2,4103.9,0.4392]
[1761668156407,2.43584717,4104.0,4103.9,0.4392]
[1761668157411,0.001,4104.2,4103.9,0.4392]
[1761668157906,2.43664717,4104.0,4103.9,0.4392]
[1761668158232,2.43670654,4103.9,4103.8,0.1515]
[1761668159710,2.43670201,4104.0,4103.8,0.1515]
[1761668159909,2.43670654,4103.9,4103.8,0.1515]
[1761668160299,0.001,4104.2,4103.5,0.1515]
[1761668160477,0.1216,4103.6,4103.5,0.1515]
[1761668161076,0.1216,4103.6,4103.5,0.5907]
[1761668162095,0.1216,4103.6,4103.5,3.73591608]
[1761668162424,0.001,4103.9,4103.5,3.33038888]
[1761668162582,0.001,4103.9,4103.7,1.960704]
[1761668162784,0.001,4103.9,4103.8,4.51906992]
[1761668163009,0.001,4103.9,4103.8,4.98263757]
[1761668163233,0.001,4103.9,4103.8,5.96294301]
[1761668165772,0.001,4103.9,4103.8,8.13494301]
[1761668167432,0.001,4103.9,4103.8,4.693504]
[1761668167609,0.001,4103.9,4103.8,7.13026992]
[1761668169948,0.001,4103.9,4103.8,0.4392]
[1761668170155,0.001,4103.9,4103.8,6.60316592]
[1761668170357,0.001,4103.9,4103.5,2.71003502]
[1761668170358,0.001,4103.9,4103.5,0.2731]
[1761668170560,0.001,4103.9,4103.6,2.6151]
[1761668170760,0.001,4103.9,4103.6,5.05197447]
[1761668170958,0.001,4103.9,4103.7,2.87992529]
[1761668171462,0.001,4103.9,4103.8,2.43676592]
[1761668171669,0.001,4103.9,4103.8,2.87986592]
[1761668172164,0.001,4103.9,4103.8,4.06156049]
[1761668172325,0.001,4103.9,4103.8,18.2452383]
[1761668172527,0.001,4103.9,4103.8,18.22087065]
[1761668176066,0.001,4103.9,4103.8,19.77607065]
[1761668177265,0.001,4104.2,4104.1,2.8420918]
[1761668177447,0.001,4104.2,4104.1,8.9248371]
[1761668177648,0.001,4104.2,4104.1,9.3679371]
[1761668180887,0.0002,4104.2,4104.1,9.3679371]
[1761668182360,0.0002,4104.2,4104.1,9.4895371]
[1761668182864,0.0002,4104.2,4104.1,7.3185371]
[1761668183064,0.0002,4104.2,4104.1,4.7291878]
[1761668183284,0.0002,4104.2,4104.1,2.2926]
[1761668183443,0.0002,4104.2,4104.1,2.171]
[1761668183643,0.0002,4104.2,4104.1,6.1627878]
[1761668184666,0.0002,4104.2,4104.1,3.7262]
[1761668184866,0.4649,4104.2,4103.8,0.1236]
[1761668185078,0.4649,4104.2,4103.9,2.171]
[1761668185079,0.0002,4104.2,4103.9,2.171]
[1761668185285,0.0002,4104.2,4103.9,2.86984346]
[1761668185638,0.4647,4104.1,4103.9,2.86984346]
[1761668185881,2.43664717,4104.0,4103.9,0.69884346]
[1761668186170,0.4647,4104.0,4103.9,0.69884346]
[1761668186344,2.90134717,4104.0,4103.9,0.69884346]
[1761668186550,0.99850222,4104.0,4103.9,0.69884346]
[1761668186848,0.4647,4104.0,4103.9,0.69884346]
[1761668187160,2.90134717,4104.0,4103.9,0.69884346]
[1761668187872,2.43660103,4104.1,4103.9,0.69884346]
[1761668188169,2.43664717,4104.0,4103.9,0.69884346]
[1761668188365,2.90134717,4104.0,4103.9,0.69884346]
[1761668188570,3.43515884,4104.0,4103.9,0.69884346]
[1761668189181,0.99851167,4104.0,4103.9,0.69884346]
[1761668189550,3.43515884,4104.0,4103.9,0.69884346]
[1761668192684,3.99190654,4103.9,4103.8,0.002]
[1761668192976,8.23689403,4103.9,4103.8,0.002]
[1761668195457,5.66039003,4103.9,4103.8,0.002]
[1761668195659,7.83139003,4103.9,4103.8,0.002]
[1761668196285,5.66039003,4103.9,4103.8,0.002]
[1761668196586,7.83139003,4103.9,4103.8,0.002]
[1761668200887,2.43724104,4103.0,4102.9,0.002]
[1761668201086,6.40716514,4103.0,4102.9,0.002]
[1761668201291,6.84906514,4103.0,4102.9,0.002]
[1761668202284,3.12286514,4103.0,4102.9,0.002]
[1761668202588,5.29386514,4103.0,4102.9,0.002]
[1761668205307,5.29306514,4103.0,4102.9,0.002]
[1761668207810,6.84826514,4103.0,4102.9,0.002]
[1761668209411,0.2239,4102.7,4102.6,1e-08]
[1761668209651,0.2239,4102.7,4102.3,0.002]
[1761668209652,3.73616577,4102.7,4102.3,0.002]
[1761668209914,2.55925692,4102.3,4102.1,0.01]
[1761668210086,4.11445692,4102.3,4102.1,0.01]
[1761668210292,2.1187,4102.3,4100.2,0.1216]
[1761668210476,2.563,4102.5,4100.1,0.1614]
[1761668210477,4.21723239,4101.5,4100.1,0.1614]
[1761668210676,6.38923239,4101.5,4100.1,0.012]
[1761668210928,6.83113239,4101.5,4100.1,0.1695]
[1761668211217,2.43831073,4101.2,4100.4,0.1575]
[1761668211379,2.43831073,4101.2,4100.1,0.1695]
[1761668211380,5.16427422,4101.2,4100.1,0.1695]
[1761668211717,5.60617422,4101.2,4100.1,0.1695]
[1761668211925,5.60617422,4101.2,4100.1,0.012]
[1761668212212,3.99357019,4101.1,4100.1,0.012]
[1761668212397,4.21770804,4100.7,4100.1,0.012]
[1761668212803,4.65960804,4100.7,4100.1,0.012]
[1761668213000,5.58662174,4100.7,4100.1,0.012]
[1761668213423,4.84127151,4100.6,4099.1,0.01]
[1761668213718,4.84127151,4100.6,4096.7,0.25509656]
[1761668213719,2.43991704,4098.5,4097.7,0.1465]
[1761668213922,4.61791704,4098.5,4098.4,1e-08]
[1761668214120,6.61291704,4098.5,4098.4,1e-08]
[1761668214332,3.99511704,4098.5,4098.4,1e-08]
[1761668214497,6.61391704,4098.5,4098.4,1e-08]
[1761668214710,7.51929201,4098.5,4098.4,1e-08]
[1761668215647,5.34029201,4098.5,4098.4,1e-08]
[1761668216003,4.90049201,4098.5,4098.4,1e-08]
[1761668216202,7.08349201,4098.5,4098.4,1e-08]
[1761668216427,7.52329201,4098.5,4098.4,1e-08]
[1761668216731,2.44021473,4098.0,4097.9,0.002]
[1761668216932,5.26776907,4098.0,4097.9,0.002]
[1761668217102,21.42207923,4098.0,4097.9,0.002]
[1761668217429,21.42207923,4098.0,4097.1,0.01]
[1761668217430,2.4406912,4097.2,4097.1,0.01]
[1761668217598,6.1808912,4097.2,4097.1,0.01]
[1761668217809,6.6206912,4097.2,4097.1,0.01]
[1761668218135,7.52682086,4097.2,4097.1,0.01]
[1761668220335,7.52682086,4097.2,4096.1,0.0325011]
[1761668220336,2.44128704,4096.2,4096.1,0.0325011]
[1761668220537,4.62528704,4096.2,4096.1,0.0325011]
[1761668220735,6.62018704,4096.2,4096.1,0.0325011]
[1761668220901,3.36981601,4096.2,4096.1,0.0325011]
[1761668221101,16.59949294,4098.1,4096.1,0.0325011]
[1761668221313,2.44128704,4096.2,4096.1,0.0325011]
[1761668221513,4.62728704,4096.2,4096.1,0.0325011]
[1761668221726,2.186,4096.2,4096.1,0.0325011]
[1761668221932,2.186,4096.2,4096.1,0.1900011]
[1761668222444,2.64872382,4096.2,4096.1,0.0325011]
[1761668222618,2.186,4096.2,4096.1,0.0325011]
[1761668222953,4.62728704,4096.2,4096.1,0.1900011]
[1761668223108,4.62728704,4096.2,4096.1,0.0325011]
[1761668223508,2.186,4096.2,4096.1,0.0325011]
[1761668223813,4.62728704,4096.2,4096.1,0.0325011]
[1761668224030,2.186,4096.2,4096.1,0.1900011]
[1761668224225,4.62728704,4096.2,4096.1,0.0325011]
[1761668224632,5.77383314,4096.2,4096.1,0.0325011]
[1761668225736,2.4417043,4095.5,4095.4,0.05]
[1761668225943,4.6317043,4095.5,4095.4,0.05]
[1761668226140,5.0989043,4095.5,4095.4,0.05]
[1761668226341,4.6317043,4095.5,4095.4,0.05]
[1761668226543,5.33903673,4095.5,4095.4,0.05]
[1761668227822,2.44134664,4096.1,4095.4,0.4795]
[1761668228059,2.19,4096.0,4095.4,0.4795]
[1761668228357,4.63142352,4096.0,4095.4,0.4795]
[1761668228555,2.44146585,4095.9,4095.4,0.05]
[1761668228747,2.44159217,4095.7,4095.4,0.4795]
[1761668229144,2.44147639,4095.9,4095.4,0.4795]
[1761668229352,2.44087936,4096.9,4095.4,0.4795]
[1761668229556,2.4416388,4095.7,4095.4,0.4795]
[1761668229871,2.44141397,4096.0,4095.4,0.4795]
[1761668230073,2.191,4096.0,4095.4,0.4795]
[1761668230544,2.44154954,4095.8,4095.4,0.4795]
[1761668230747,2.191,4096.1,4095.4,0.4795]
[1761668231069,0.2191,4096.0,4095.4,0.4795]
[1761668231368,2.44147905,4095.9,4095.4,0.4795]
[1761668231773,0.2191,4096.0,4095.4,0.4795]
[1761668231936,4.63235391,4096.1,4095.4,0.4795]
[1761668232142,2.191,4096.1,4095.4,0.4795]
[1761668232344,0.39960794,4096.8,4095.5,0.405504]
[1761668232557,2.19,4096.9,4096.7,0.1575]
[1761668232754,2.44083232,4097.0,4096.7,0.1575]
[1761668232959,2.19,4097.2,4096.8,0.4335]
[1761668233388,0.1216,4096.8,4096.7,0.1575]
[1761668233960,2.44082612,4097.0,4096.7,0.1575]
[1761668233961,2.19,4097.3,4096.7,0.591]
[1761668234276,2.41,4097.3,4096.7,0.591]
[1761668234481,2.4406912,4097.2,4096.7,0.591]
[1761668234679,2.2,4097.4,4096.8,0.4335]
[1761668234854,2.2,4097.4,4096.7,0.1575]
[1761668235061,2.44087635,4096.9,4096.7,0.1575]
[1761668235281,2.44080319,4097.1,4096.7,0.1575]
[1761668235470,2.44081644,4097.0,4096.7,0.1575]
[1761668235790,2.4408738,4096.9,4096.7,0.1575]
[1761668235954,0.001,4097.0,4096.7,0.591]
[1761668236350,2.44185388,4097.0,4096.7,0.591]
[1761668236568,2.44087163,4096.9,4096.7,0.591]
[1761668236880,2.44182527,4097.0,4096.7,0.591]
[1761668237062,0.001,4097.0,4096.7,0.591]
[1761668237395,0.001,4097.0,4096.2,1.5552]
[1761668237396,2.4409295,4096.8,4096.2,1.5552]
[1761668237595,2.4409295,4096.8,4096.0,0.1465]
[1761668237596,2.4092,4096.9,4096.0,0.1465]
[1761668237758,2.44158507,4095.7,4095.4,0.052]
[1761668238093,2.19,4096.2,4095.4,0.4855]
[1761668238630,2.44153242,4095.8,4095.4,0.4855]
[1761668238760,2.44162164,4095.7,4095.4,0.052]
[1761668238960,2.44145179,4096.0,4095.5,0.4335]
[1761668238961,2.44144293,4096.0,4095.5,0.4335]
[1761668239193,2.4413653,4096.1,4095.5,0.4335]
[1761668239412,2.44152822,4095.8,4095.5,0.4335]
[1761668239707,2.44146443,4096.0,4095.4,0.052]
[1761668239924,2.44146443,4096.0,4095.5,0.4335]
[1761668240199,2.44149161,4095.9,4095.5,0.4335]
[1761668240408,2.44154346,4095.8,4095.5,0.4335]
[1761668241206,2.44152882,4095.8,4095.5,0.4335]
[1761668241385,2.44148395,4095.9,4095.5,0.4335]
[1761668241567,2.9044889,4096.1,4095.5,0.4335]
[1761668241568,2.90449821,4096.1,4095.5,0.4335]
[1761668241762,2.44142053,4096.0,4095.5,0.4335]
[1761668241963,2.44096642,4096.8,4095.5,0.4335]
[1761668241964,0.6737,4096.9,4095.5,0.4335]
[1761668242163,2.44147752,4095.9,4095.5,0.4335]
[1761668242386,1.5552,4096.7,4095.5,0.4335]
[1761668242387,2.44139057,4096.1,4095.5,0.4335]
[1761668242576,2.44131911,4096.2,4095.5,0.4335]
[1761668242777,2.44135691,4096.1,4095.5,0.4335]
[1761668243359,2.44141229,4096.0,4095.4,0.052]
[1761668243561,2.44141229,4096.0,4095.4,0.4855]
[1761668244196,2.44151191,4095.9,4095.4,0.4855]
[1761668244400,2.44152444,4095.9,4095.4,0.4855]
[1761668245491,2.44152693,4095.8,4095.4,0.4855]
[1761668245985,0.24415269,4095.7,4095.4,0.052]
[1761668246189,2.6609043,4095.5,4095.4,0.052]
[1761668246390,2.6609043,4095.5,4094.5,0.002]
[1761668246391,2.44188318,4095.2,4094.5,0.002]
[1761668246602,2.44200244,4095.0,4094.5,0.002]
[1761668246805,4.217641,4094.6,4094.5,1e-08]
[1761668247097,2.4424796,4094.2,4094.1,0.01]
[1761668247317,3.9976796,4094.2,4094.1,0.01]
[1761668247519,6.6411796,4094.2,4094.1,0.01]
[1761668248451,2.44307632,4093.2,4093.1,0.01]
[1761668248787,5.12168341,4093.2,4093.1,0.01]
[1761668248895,5.57518341,4093.2,4093.1,0.01]
[1761668249933,5.12168341,4093.2,4093.1,0.01]
[1761668250198,5.57518341,4093.2,4093.1,0.01]
[1761668250604,5.12168341,4093.2,4093.1,0.01]
[1761668250803,16.54660862,4094.2,4093.1,0.01]
[1761668250804,0.2202,4093.8,4093.1,0.1675]
[1761668251099,0.4535,4094.3,4093.1,0.1675]
[1761668251100,2.44294613,4093.5,4093.1,0.1675]
[1761668251318,2.191,4093.5,4093.1,0.01]
[1761668251708,4.63391357,4093.5,4093.1,0.01]
[1761668251945,2.191,4093.5,4093.1,0.1675]
[1761668252122,0.4535,4095.0,4093.1,0.601]
[1761668252327,2.44255231,4094.1,4093.2,2.87656995]
[1761668252554,2.44239256,4094.4,4093.2,0.98223197]
[1761668252832,2.191,4094.2,4093.3,2.87646135]
[1761668253001,2.191,4094.2,4093.4,2.44294615]
[1761668253193,2.191,4094.3,4093.4,0.4335]
[1761668253398,4.63347156,4094.3,4093.5,0.4335]
[1761668253614,2.44249775,4094.2,4093.5,0.4335]
[1761668254214,2.191,4094.3,4093.5,0.4335]
[1761668254215,2.44174087,4094.1,4093.5,0.4335]
[1761668254633,2.191,4094.3,4093.5,0.4335]
[1761668254830,2.44253926,4094.1,4093.5,0.4335]
[1761668255343,2.4101,4094.3,4093.5,0.4335]
[1761668255558,0.2202,4094.9,4093.5,0.4335]
[1761668255559,0.4548,4095.8,4094.2,0.1494]
[1761668255716,0.866,4095.3,4094.3,0.4583]
[1761668255903,2.44212045,4094.9,4094.3,0.4583]
[1761668258451,2.44187187,4095.3,4094.7,0.6077]
[1761668258830,2.44192936,4095.2,4094.7,0.6077]
[1761668259777,2.44188211,4095.3,4094.7,0.1494]
[1761668259979,0.47436779,4095.4,4094.8,0.4583]
[1761668259980,0.01,4095.4,4094.8,0.4583]
[1761668260159,0.01,4095.4,4094.7,0.1494]
[1761668260336,2.44182932,4095.3,4094.7,0.1494]
[1761668260950,2.44189057,4095.2,4094.7,0.1494]
[1761668261165,0.70845377,4095.3,4094.4,0.4583]
[1761668261166,2.44217663,4094.8,4094.4,0.4583]
[1761668261332,2.44211493,4094.9,4094.5,0.1494]
[1761668261946,2.19,4095.2,4094.1,2.19]
[1761668262243,2.19,4095.2,4094.2,0.1494]
[1761668262450,2.19,4095.2,4093.4,14.10407528]
[1761668262451,2.44225149,4094.6,4093.7,0.2075]
[1761668262755,2.44228703,4094.6,4093.7,0.2075]
[1761668263062,2.44230185,4094.5,4093.8,0.4583]
[1761668263380,2.44217328,4094.8,4093.9,2.44265858]
[1761668263587,4.63300244,4095.0,4094.0,2.44259113]
[1761668263924,2.44182355,4095.3,4094.9,0.1494]
[1761668264037,0.01,4095.4,4094.9,0.6077]
[1761668264429,2.44182721,4095.3,4094.9,0.6077]
[1761668264847,2.44189737,4095.2,4094.9,0.6077]
[1761668265266,0.01,4095.4,4094.9,0.1494]
[1761668265468,0.01,4095.4,4095.0,0.4583]
[1761668265872,0.01,4095.4,4094.9,0.1494]
[1761668266258,2.4517835,4095.4,4094.9,0.6077]
[1761668266437,2.44182594,4095.3,4094.9,0.6077]
[1761668266637,2.44189244,4095.2,4094.9,0.6077]
[1761668267265,2.45176605,4095.4,4094.9,0.1494]
[1761668267568,0.01,4095.4,4094.9,0.6077]
[1761668267782,0.1216,4095.2,4095.0,0.4583]
[1761668267989,0.1216,4095.2,4094.9,0.1494]
[1761668268154,2.44194957,4095.1,4094.9,0.1494]
[1761668268970,2.44189782,4095.2,4094.9,0.1494]
[1761668269674,2.44183692,4095.3,4094.9,0.1494]
[1761668269889,0.01,4095.4,4094.9,0.1494]
[1761668270186,0.01,4095.4,4094.9,0.6077]
[1761668270392,2.45177573,4095.4,4094.9,0.6077]
[1761668270791,2.44187083,4095.3,4094.9,0.1494]
[1761668270955,2.44187083,4095.3,4094.9,0.6077]
[1761668271422,0.01,4095.4,4094.9,0.1494]
[1761668271560,0.01,4095.4,4095.0,0.4583]
[1761668271761,0.001,4095.2,4095.0,0.4583]
[1761668272489,0.1216,4095.1,4095.0,0.4583]
[1761668275094,0.1216,4095.1,4094.9,0.1494]
[1761668275307,2.44259007,4095.7,4095.4,2.44172122]
[1761668275308,0.001,4095.7,4095.4,2.44172122]
[1761668275510,0.001,4096.6,4095.9,2.44141675]
[1761668275511,0.1216,4096.2,4095.9,2.44141675]
[1761668275671,0.1216,4096.2,4096.0,14.10407528]
[1761668276018,0.1216,4096.2,4096.0,18.73348153]
[1761668276871,0.1216,4096.2,4096.0,2.188]
[1761668277276,0.1216,4096.2,4096.0,4.62940625]
[1761668277809,0.458,4096.1,4095.5,2.187]
[1761668278598,0.2125,4095.6,4095.0,2.188]
[1761668278807,0.6663,4095.6,4095.0,2.188]
[1761668279113,0.6663,4095.6,4095.0,3.7432]
[1761668279317,0.6663,4095.6,4095.0,4.63000191]
[1761668279700,0.6663,4095.6,4095.0,4.62999749]
[1761668279900,3.10795281,4095.6,4095.0,2.188]
[1761668280105,0.6663,4095.6,4095.0,2.188]
[1761668280305,0.2117,4095.6,4095.0,2.188]
[1761668280505,0.4546,4095.5,4095.0,2.188]
[1761668280708,0.4546,4095.5,4095.0,3.7432]
[1761668280904,2.89631367,4095.5,4095.0,2.188]
[1761668281421,0.4546,4095.5,4095.1,2.4419428]
[1761668281786,2.89641518,4095.4,4094.6,3.99739832]
[1761668281992,2.89641518,4095.4,4094.9,2.187]
[1761668281993,3.45139455,4095.4,4094.9,2.187]
[1761668282212,1.00957937,4095.4,4094.9,2.187]
[1761668282416,0.001,4096.1,4094.9,2.187]
[1761668282417,0.2133,4095.9,4095.0,0.4583]
[1761668282611,0.2133,4095.9,4095.0,2.90029624]
[1761668282830,0.2133,4095.9,4095.1,2.44188321]
[1761668283000,0.2133,4095.9,4095.2,0.02441883]
[1761668283197,0.2133,4095.9,4094.9,2.187]
[1761668283397,0.2133,4095.9,4095.1,1.5552]
[1761668283621,0.001,4096.1,4095.0,2.683534]
[1761668283838,0.001,4096.1,4095.7,2.44153821]
[1761668283999,0.001,4096.1,4095.9,2.44142108]
[1761668284398,0.001,4096.1,4095.7,2.186]
[1761668284611,0.4493,4096.0,4094.9,0.4438]
[1761668284920,0.4493,4096.0,4095.3,2.84728259]
[1761668285098,0.001,4096.1,4095.4,4.62775409]
[1761668285303,0.001,4096.1,4095.4,2.186]
[1761668285504,2.44237549,4096.1,4095.4,4.62775485]
[1761668285741,0.001,4096.1,4095.4,2.186]
[1761668285905,0.001,4096.1,4095.4,6.18295271]
[1761668286105,0.001,4096.1,4095.5,2.44170006]
[1761668286331,0.001,4096.1,4095.4,3.7412]
[1761668286533,0.001,4096.1,4095.6,2.44160383]
[1761668286943,0.001,4096.1,4095.7,0.4438]
[1761668287406,2.44239679,4096.1,4095.4,4.185]
[1761668287602,2.44239176,4096.1,4095.4,2.186]
[1761668287830,0.1216,4095.6,4095.4,2.186]
[1761668288203,0.1216,4095.6,4095.4,4.62775492]
[1761668288535,0.1216,4095.6,4095.4,2.186]
[1761668288736,0.5627,4095.6,4094.8,0.405504]
[1761668288903,0.1216,4095.3,4094.9,2.185]
[1761668289106,0.1216,4095.1,4094.9,2.185]
[1761668289306,0.1216,4095.1,4094.9,4.62704475]
[1761668289637,0.1216,4095.1,4094.9,2.6288]
[1761668289936,0.1216,4095.1,4094.8,2.185]
[1761668290126,2.44190313,4095.2,4094.8,2.185]
[1761668291115,0.4411,4095.6,4094.8,2.185]
[1761668291334,0.1216,4094.8,4094.6,2.185]
[1761668291942,0.1216,4094.8,4094.1,0.1336]
[1761668291943,2.44226185,4094.6,4094.1,0.012]
[1761668292126,2.44226185,4094.6,4094.2,2.185]
[1761668292333,0.4434,4094.8,4094.2,2.185]
[1761668292642,2.44219271,4094.7,4094.2,2.185]
[1761668293246,0.0736,4095.4,4094.2,2.6288]
[1761668293431,0.0736,4095.4,4095.3,2.44182355]
[1761668293632,0.0736,4095.4,4095.3,4.62782355]
[1761668293970,0.0736,4095.4,4095.3,21.26024534]
[1761668297030,0.0736,4095.4,4095.3,24.14394534]
[1761668297255,0.0736,4095.4,4095.3,24.14794534]
[1761668297423,0.0736,4095.4,4095.3,4.8827]
[1761668297628,0.0736,4095.4,4095.3,9.52602355]
[1761668297836,0.0736,4095.4,4095.3,7.04782755]
[1761668298437,0.0736,4095.4,4095.3,7.99680404]
[1761668298638,0.0736,4095.4,4095.3,5.55498049]
[1761668298857,0.0736,4095.4,4095.3,4.149704]
[1761668299063,0.0736,4095.4,4095.3,6.59152755]
[1761668300560,0.0736,4095.4,4095.3,2.189]
[1761668301366,0.5207,4095.4,4094.4,0.405504]
[1761668301569,0.0736,4095.4,4094.7,0.405504]
[1761668301778,0.0736,4095.4,4094.7,0.9548085]
[1761668301954,0.0736,4095.4,4095.1,2.44189599]
[1761668301955,0.1216,4095.2,4095.1,2.44189599]
[1761668302161,0.10865834,4095.2,4095.1,4.63089599]
[1761668302353,0.0736,4095.4,4095.1,4.63089599]
[1761668302354,0.0736,4095.4,4095.3,2.44182355]
[1761668302979,0.0736,4095.4,4095.3,2.84732755]
[1761668303179,0.0728,4095.4,4095.3,5.7282499]
[1761668303783,0.001,4096.1,4096.0,2.84691025]
[1761668303960,0.01,4096.4,4096.3,4.40193144]
[1761668304161,0.01,4096.4,4096.3,4.85823144]
[1761668304477,0.01,4096.4,4096.3,4.88264371]
[1761668304668,0.01,4096.4,4096.3,6.64724472]
[1761668304868,0.01,4096.4,4096.3,6.62283245]
[1761668305183,0.01,4096.4,4096.3,6.37160501]
[1761668305383,0.01,4096.4,4096.3,7.04823144]
[1761668305955,0.01,4096.4,4096.3,7.04923144]
[1761668306848,0.011,4096.4,4096.3,7.04923144]
[1761668309769,0.011,4096.4,4096.3,5.49403144]
[1761668311403,0.051,4096.9,4096.5,4.40181226]
[1761668311689,0.051,4096.9,4096.5,5.54532731]
[1761668311877,0.051,4096.9,4096.5,5.97721623]
[1761668313972,0.051,4096.9,4096.5,6.09881623]
[1761668314471,0.051,4096.9,4096.7,0.405504]
[1761668314689,0.051,4096.9,4096.8,18.37862179]
[1761668314989,0.051,4096.9,4096.8,22.32514833]
[1761668316795,1e-08,4096.9,4096.8,22.32514833]
[1761668318000,0.001,4097.3,4096.9,4.40157392]
[1761668318184,0.001,4097.3,4096.9,4.86107392]
[1761668319195,0.001,4097.3,4096.9,7.74477392]
[1761668319400,0.001,4097.3,4096.9,8.29407842]
[1761668321692,0.001,4097.3,4097.2,2.8461952]
[1761668321995,0.001,4097.3,4097.2,6.61280211]
[1761668322190,1e-08,4097.4,4097.3,4.40133563]
[1761668322393,0.01,4098.4,4098.3,2.84554011]
[1761668322635,0.01,4098.4,4098.3,6.58774011]
[1761668322986,0.01,4098.4,4098.3,6.70934011]
[1761668324034,0.01,4098.4,4098.3,7.16884011]
[1761668326225,0.01,4098.4,4098.3,6.70934011]
[1761668326800,0.01,4098.4,4098.3,6.58774011]
[1761668327031,0.01,4098.4,4098.3,8.91416643]
[1761668327729,0.0092,4098.4,4098.3,8.91416643]
[1761668329834,0.0092,4098.4,4098.3,11.79786643]
[1761668330033,0.0092,4098.4,4098.3,11.33836643]
[1761668330928,0.0092,4098.4,4098.3,11.79786643]
[1761668331835,0.0092,4098.4,4098.3,11.79586643]
[1761668332843,0.0092,4098.4,4098.3,11.33636643]
[1761668333339,0.0092,4098.4,4098.3,11.79586643]
[1761668333704,0.0092,4098.4,4098.3,11.33636643]
[1761668334603,0.4548,4098.4,4098.3,1.5552]
[1761668334803,0.4548,4098.4,4098.3,2.184]
[1761668335035,0.0092,4098.4,4098.3,2.184]
[1761668335236,0.0092,4098.4,4098.3,5.02954011]
[1761668335608,0.0092,4098.4,4098.3,4.62403611]
[1761668335808,0.0092,4098.4,4098.3,5.02954011]
[1761668336741,0.4548,4098.4,4098.3,5.02954011]
[1761668337104,0.0092,4098.4,4098.3,5.02954011]
[1761668337303,0.0092,4098.4,4098.3,6.58474011]
[1761668337540,0.0092,4098.4,4098.3,7.49938672]
[1761668339175,0.0092,4098.4,4098.3,7.09388272]
[1761668339777,0.0092,4098.4,4098.3,7.49938672]
[1761668339980,0.0092,4098.4,4098.3,7.62098672]
[1761668340843,0.4548,4098.4,4098.3,4.52234011]
[1761668341046,0.4548,4098.4,4098.3,6.70534011]
[1761668341376,0.4548,4098.4,4098.3,6.70634011]
[1761668341939,0.0092,4098.4,4098.3,6.70634011]
[1761668342469,0.4548,4098.4,4098.3,6.70634011]
[1761668342789,0.4548,4098.4,4098.3,6.70834011]
[1761668342983,0.4558,4098.4,4098.3,6.70834011]
[1761668344576,0.0102,4098.4,4098.3,6.70834011]
[1761668344879,0.0102,4098.4,4098.3,7.62318672]
[1761668346912,0.0102,4098.4,4098.3,4.52434011]
[1761668347109,0.4659,4098.4,4098.3,4.52434011]
[1761668347295,0.4659,4098.4,4098.3,6.70734011]
[1761668348311,0.0102,4098.4,4098.3,6.70734011]
[1761668349297,0.4759,4098.4,4098.3,6.70734011]
[1761668349513,0.0102,4098.4,4098.3,6.70734011]
[1761668349817,0.0102,4098.4,4098.3,8.07848672]
[1761668350023,1e-08,4098.4,4098.3,7.95688672]
[1761668350674,1e-08,4098.4,4098.3,7.50048672]
[1761668351574,1e-08,4098.4,4098.3,7.95688672]
[1761668352199,1e-08,4098.4,4098.3,10.84058672]
[1761668352379,0.00020001,4098.9,4098.8,2.84524246]
[1761668352581,0.00020001,4098.9,4098.8,5.55674809]
[1761668353297,0.00020001,4098.9,4098.8,5.02824246]
[1761668353500,0.46340001,4098.9,4098.8,5.02824246]
[1761668353802,0.00020001,4098.9,4098.8,5.02824246]
[1761668354580,0.00020001,4098.9,4098.8,2.84524246]
[1761668354890,0.00020001,4098.9,4098.8,5.02824246]
[1761668355110,0.00020001,4098.9,4098.8,6.90491921]